[Event "17th Delhi GM Open 2019-B"]
[Site "Delhi"]
[Date "2019.01.11"]
[Round "8"]
[White "Baig, Akram"]
[Black "Rathi Dhanashree"]
[Result "1-0"]
[ECO "A83"]
[WhiteElo "1805"]
[BlackElo "1721"]
[Annotator "NA RC"]
[PlyCount "101"]
[EventDate "2019.01.09"]
[EventType "swiss"]
[EventCountry "IND"]
[SourceTitle "playchess.com"]
[Source "ChessBase"]
[SourceQuality "1"]
[TimeControl "3600+30"]

{[%evp 8,82,8,-47,-33,-43,-30,-51,-54,32767,32767,32767,32767,32767,32767,32767,32767,-43,-8,-28,-1,-30,-18,-12,14,0,16,-56,29,-21,0,0,32767,0,0,0,39,20,32,32767,45,48,41,30,109,32767,32767,98,97,52,32767,99,115,86,79,75,87,32767,96,32767,32767,123,133,110,329,226,287,374,523,383,330,677,863,492,490,458,771]} 1. d4 {[%emt 0:00:00]} f5 {[%emt 0:00:00]} 2. e4 {[%emt 0:00:00]} fxe4 {[%emt 0:00:00]} 3. Nc3 {[%emt 0:00:00]} Nf6 {[%emt 0:00:00]} 4. Bg5 {[%emt 0:00:00]} g6 {[%emt 0:00:00]} 5. Bxf6 {[%emt 0:00:00]} exf6 {[%emt 0:00:00]} 6. Nxe4 {[%emt 0:00:00]} d5 {[%emt 0:00:00] LiveBook: 3 Games} 7. Ng3 {[%emt 0:00:00] A83: Dutch Defence: Staunton Gambit with 3 Nc3 Nf6 4 Bg5} (7. Nc3 Bb4 8. Qf3 c6 9. O-O-O O-O 10. Nge2 Nd7 11. h4 f5 12. a3 Ba5 13. Nf4 Nf6 14. Nce2 Ne4 {0-1 (45) Nadera,B (2401)-Dzhumaev,M (2549) Manila 2008}) 7... Bh6 {[%emt 0:00:00]} 8. Bd3 {[%emt 0:00:00]} O-O {[%emt 0:00:00]} 9. h4 $146 {[%emt 0:00:00]} ({Predecessor:} 9. N1e2 f5 10. f4 Nd7 11. O-O Nf6 12. h3 c6 13. c3 Ne4 14. Bxe4 fxe4 {0-1 (57) Linn,M (2093)-Win,A (2217) Yangon 2015}) 9... f5 {[%emt 0:00:00]} 10. Qf3 {[%emt 0:00:00]} c6 {[%emt 0:00:00]} 11. c3 {[%emt 0:00:00]} Qf6 {[%emt 0:00:00]} 12. Qd1 {[%emt 0:00:00]} Na6 {[%emt 0:00:00]} 13. Nf3 {[%emt 0:00:00]} Nc7 {[%emt 0:00:00]} 14. Kf1 {[%emt 0:00:00]} f4 {[%emt 0:00:00]} 15. Ne2 {[%emt 0:00:00]} Ne8 {[%emt 0:00:00]} 16. Ne5 {[%emt 0:00:00]} Nd6 {[%emt 0:00:00]} 17. Qc2 {[%emt 0:00:00]} (17. Ng1 $11) 17... Bf5 {[%emt 0:11:22]} (17... f3 $15 18. gxf3 Nf7) 18. Ng1 {[%emt 0:00:00]} Rae8 {[%emt 0:05:06]} 19. Bxf5 {[%emt 0:00:00]} Qxf5 {[%emt 0:00:44]} 20. Qxf5 {[%emt 0:00:00]} Rxf5 {[%emt 0:00:01]} 21. Ngf3 {[%emt 0:00:00]} Nf7 {[%emt 0:00:54]} 22. Re1 {[%emt 0:01:57]} Nxe5 {[%emt 0:00:42]} 23. Nxe5 {[%emt 0:06:04]} Bg7 {[%emt 0:00:29]} 24. Nd3 {[%emt 0:00:56]} Rxe1+ {[%emt 0:00:54]} 25. Kxe1 {[%emt 0:00:02]} h6 {[%emt 0:03:01]} (25... Bf6 $14) 26. Ke2 {[%emt 0:00:13]} Bf8 {[%emt 0:01:41]} 27. Kf3 {[%emt 0:00:18]} Bd6 {[%emt 0:00:01]} 28. h5 {[%emt 0:00:57]} g5 {[%emt 0:00:45]} 29. Kg4 {[%emt 0:01:33]} Rf6 {[%emt 0:00:03] [#]} 30. Re1 $1 {[%emt 0:00:23]} Kf7 {[%emt 0:00:00] [#]} 31. Ne5+ $1 {[%emt 0:00:57]} Bxe5 {[%emt 0:00:20]} 32. dxe5 {[%emt 0:00:23]} Re6 {[%emt 0:01:44]} 33. Kf5 {[%emt 0:00:03]} Ke7 {[%emt 0:00:51]} 34. a4 {[%emt 0:00:29]} (34. Rd1 $18 {has better winning chances.}) 34... Kf7 {[%emt 0:04:04]} 35. Re2 {[%emt 0:00:55]} (35. g3 $18) 35... Ke7 $2 {[%emt 0:02:09]} (35... Re8 $16 {is a better defense.}) 36. b3 {[%emt 0:00:11]} b6 {[%emt 0:01:11]} 37. Rd2 {[%emt 0:00:44]} Kf7 {[%emt 0:04:00]} 38. c4 {[%emt 0:00:17]} dxc4 {[%emt 0:01:01]} 39. bxc4 {[%emt 0:00:02]} Ke7 {[%emt 0:01:40]} 40. Rd3 {[%emt 0:00:43]} a6 {[%emt 0:00:33] [#]} 41. a5 $1 {[%emt 0:00:42]} c5 $18 {[%emt 0:02:16]} (41... bxa5 $142 42. Rb3 Kd7 43. Rd3+ Ke7) 42. Rb3 {[%emt 0:00:50]} b5 {[%emt 0:00:34]} 43. cxb5 {[%emt 0:00:03]} c4 {[%emt 0:00:08]} 44. Rb1 {[%emt 0:00:15]} axb5 {[%emt 0:00:08]} 45. Rxb5 {[%emt 0:00:19]} Rc6 {[%emt 0:00:10]} 46. Rb6 {[%emt 0:01:18]} Rxb6 {[%emt 0:00:49]} 47. axb6 {[%emt 0:00:07]} c3 {[%emt 0:00:02]} 48. b7 {[%emt 0:00:05]} c2 {[%emt 0:00:05]} 49. b8=Q {[%emt 0:00:02]} c1=Q {[%emt 0:00:11]} 50. Qd6+ {[%emt 0:00:13]} Ke8 {[%emt 0:00:16]} 51. Kf6 {[%emt 0:00:31]} 1-0

[Event "17th Delhi GM Open 2019-B"]
[Site "Delhi"]
[Date "2019.01.11"]
[Round "8"]
[White "Aryan"]
[Black "Dupit Tabu"]
[Result "1-0"]
[ECO "A46"]
[WhiteElo "1784"]
[BlackElo "1821"]
[Annotator "NA RC"]
[PlyCount "133"]
[EventDate "2019.01.09"]
[EventType "swiss"]
[EventCountry "IND"]
[SourceTitle "playchess.com"]
[Source "ChessBase"]
[SourceQuality "1"]
[TimeControl "3600+30"]

{[%evp 8,125,0,-2,32767,32767,32767,32767,32767,32767,32767,32767,32767,32767,32767,-21,-21,-20,0,0,0,-35,-17,-41,-18,-43,-41,-159,200,185,189,208,261,253,245,279,259,293,32767,277,322,299,309,317,32767,310,32767,32767,314,379,330,345,349,437,483,201,239,198,379,424,438,369,323,32767,32767,32767,718,32767,32767,870,826,239,245,227,256,222,268,286,308,32767,32767,32767,32767,32767,32767,32767,32767,32767,32767,32767,32767,32767,32767,32767,443,314,373,359,401,550,452,638,32767,32767,700,487,960,1213,834,2551,1212,5050,1191,5583,29976,32767,32767,32767,29979,29981]} 1. d4 {[%emt 0:00:00]} Nf6 {[%emt 0:00:00]} 2. Nf3 {[%emt 0:00:00]} e6 {[%emt 0:00:00]} 3. e3 {[%emt 0:00:00]} c5 {[%emt 0:00:00]} 4. Be2 {[%emt 0:00:00]} Nc6 {[%emt 0:00:00] A46: 1 d4 Nf6 2 Nf3 e6: Torre, London and Colle Systems} 5. O-O {[%emt 0:00:00] LiveBook: 13 Games} b6 {[%emt 0:00:00]} 6. c4 {[%emt 0:00:00]} Bb7 {[%emt 0:00:00]} 7. Nc3 {[%emt 0:00:00]} cxd4 {[%emt 0:00:00]} 8. Nxd4 {[%emt 0:00:00]} Nxd4 $146 {[%emt 0:00:00]} ({Predecessor:} 8... a6 9. b3 Be7 10. Bb2 O-O 11. Rc1 Rc8 12. Bf3 Ba8 13. Nxc6 Bxc6 14. Bxc6 dxc6 15. Qf3 Qc7 16. Rfd1 Rfd8 17. Ne4 Rxd1+ {½-½ (17) Bodiroga,P (2431)-Varga,Z (2497) Budapest 2007}) 9. Qxd4 {[%emt 0:00:00]} Bc5 {[%emt 0:00:00]} 10. Qh4 {[%emt 0:00:00]} O-O {[%emt 0:00:00]} 11. a3 {[%emt 0:00:00]} Be7 {[%emt 0:00:00]} 12. Qh3 {[%emt 0:00:00]} Rc8 {[%emt 0:00:00]} 13. Rd1 {[%emt 0:00:00]} Ne4 {[%emt 0:01:14]} 14. Bd3 {[%emt 0:00:00]} f5 {[%emt 0:00:23]} 15. Nxe4 {[%emt 0:00:00]} fxe4 {[%emt 0:00:50]} 16. Be2 {[%emt 0:00:00]} Bf6 {[%emt 0:04:47]} 17. Bg4 {[%emt 0:00:00] [#]} (17. Rb1 $1 $15) 17... Qe7 $4 {[%emt 0:00:54] [#]} (17... Re8 $1 $19 {and all is fine.} 18. Rb1 Rxc4) 18. Rxd7 $1 {[%emt 0:00:00] Remove Defender} Qxd7 {[%emt 0:05:31]} 19. Bxe6+ {[%emt 0:00:00]} Qxe6 {[%emt 0:00:28]} 20. Qxe6+ {[%emt 0:00:00]} Kh8 {[%emt 0:00:02]} 21. Bd2 {[%emt 0:00:00]} Bxb2 {[%emt 0:00:53]} 22. Rb1 {[%emt 0:00:00]} Bf6 {[%emt 0:01:17]} 23. Bb4 {[%emt 0:03:34]} Rfe8 {[%emt 0:00:55]} 24. Qf7 {[%emt 0:04:00]} Ba6 {[%emt 0:00:21]} 25. Rc1 {[%emt 0:01:48]} ({But not} 25. Qxa7 Bxc4 26. Qxb6 Bd3 $18) 25... Red8 {[%emt 0:03:20]} 26. g3 {[%emt 0:02:52]} ({Don't take} 26. Qxa7 Bxc4 27. Qxb6 Bb2 $18) 26... h6 {[%emt 0:02:56]} 27. Kg2 {[%emt 0:04:27]} Ra8 {[%emt 0:01:43]} 28. h4 {[%emt 0:03:41]} Bc8 {[%emt 0:05:14]} 29. Qh5 {[%emt 0:00:01]} Be6 {[%emt 0:02:11]} 30. g4 {[%emt 0:00:01]} a5 {[%emt 0:03:03]} 31. Bc3 {[%emt 0:02:42]} (31. g5 $142) 31... Bxc3 {[%emt 0:00:21]} 32. Rxc3 {[%emt 0:00:30]} Rac8 $2 {[%emt 0:03:32]} (32... Rd2 {is a better defense.} 33. Qg6 Rf8) 33. g5 {[%emt 0:00:00]} Rc5 {[%emt 0:01:32]} 34. Qg6 {[%emt 0:01:28]} Rd6 {[%emt 0:02:47]} 35. Kg3 {[%emt 0:03:27]} hxg5 {[%emt 0:00:45]} 36. hxg5 {[%emt 0:00:00]} Rdc6 $2 {[%emt 0:00:25]} (36... Rf5 37. Qe8+ Kh7) 37. Rc1 {[%emt 0:00:56]} Bf7 {[%emt 0:05:28]} 38. Qxf7 {[%emt 0:03:30]} Rxg5+ {[%emt 0:00:06]} 39. Kf4 $2 {[%emt 0:00:12]} (39. Kh4 Re5 40. Kg4) 39... Rf6+ {[%emt 0:00:08]} 40. Qxf6 $1 {[%emt 0:00:14]} gxf6 {[%emt 0:00:32]} 41. Kxe4 {[%emt 0:00:00]} Kg7 {[%emt 0:02:36]} 42. Rb1 {[%emt 0:00:03]} Rc5 {[%emt 0:00:01]} 43. Kd4 {[%emt 0:00:14]} Rc6 {[%emt 0:00:42]} 44. Rb5 {[%emt 0:00:01]} Rd6+ {[%emt 0:00:51]} 45. Rd5 {[%emt 0:00:01]} Rc6 {[%emt 0:00:20]} 46. a4 {[%emt 0:00:00]} Kf7 {[%emt 0:00:10]} 47. f4 {[%emt 0:01:38]} Ke7 {[%emt 0:02:16]} 48. Rh5 {[%emt 0:00:01]} Rd6+ {[%emt 0:00:25]} 49. Rd5 {[%emt 0:00:01]} Rc6 {[%emt 0:00:25]} 50. c5 {[%emt 0:00:00]} bxc5+ {[%emt 0:01:32]} 51. Rxc5 {[%emt 0:00:00]} Ra6 {[%emt 0:02:21]} 52. f5 {[%emt 0:00:01]} Kd7 {[%emt 0:00:40]} 53. Kc4 {[%emt 0:00:37]} Ra8 {[%emt 0:02:02]} 54. e4 {[%emt 0:00:00]} Kd6 {[%emt 0:00:37]} 55. Rd5+ {[%emt 0:00:00]} Kc6 {[%emt 0:00:58]} 56. Kd4 {[%emt 0:00:00]} Kc7 {[%emt 0:00:44]} 57. e5 {[%emt 0:00:00]} fxe5+ {[%emt 0:01:45]} 58. Kxe5 {[%emt 0:00:00]} Kc6 {[%emt 0:00:13]} 59. Rb5 {[%emt 0:00:26]} Kd7 {[%emt 0:00:44]} 60. Kf6 {[%emt 0:00:50]} Ke8 {[%emt 0:01:31]} 61. Kg7 {[%emt 0:00:00]} Ra7+ {[%emt 0:00:50]} 62. Kg8 {[%emt 0:00:00]} Ke7 {[%emt 0:00:44] [#]} 63. Rb6 $1 {[%emt 0:00:00]} Kd7 {[%emt 0:03:50]} 64. f6 {[%emt 0:00:45]} Kc7 {[%emt 0:00:54]} 65. Re6 {[%emt 0:00:12]} Ra8+ {[%emt 0:00:19]} 66. Kg7 {[%emt 0:00:00]} Kd7 {[%emt 0:00:32]} 67. Re4 {[%emt 0:00:05]} 1-0

[Event "17th Delhi GM Open 2019-B"]
[Site "Delhi"]
[Date "2019.01.11"]
[Round "8"]
[White "Sai Kiran Y"]
[Black "Srujan Keerthan Solletti"]
[Result "1-0"]
[ECO "D02"]
[WhiteElo "1732"]
[BlackElo "1804"]
[Annotator "NA RC"]
[PlyCount "51"]
[EventDate "2019.01.09"]
[EventType "swiss"]
[EventCountry "IND"]
[SourceTitle "playchess.com"]
[Source "ChessBase"]
[SourceQuality "1"]
[TimeControl "3600+30"]

{[%evp 9,47,-6,32767,32767,-18,32767,32767,32767,-6,32767,32767,32767,13,-10,31,0,56,85,52,64,92,80,100,85,119,98,116,107,145,145,32767,198,229,183,32767,32767,32767,176,210,270]} 1. d4 {[%emt 0:00:00]} Nf6 {[%emt 0:00:00]} 2. Bf4 {[%emt 0:00:00]} d5 {[%emt 0:00:00]} 3. e3 {[%emt 0:00:00]} e6 {[%emt 0:00:00]} 4. Nd2 {[%emt 0:00:00]} Bd6 {[%emt 0:00:00]} 5. Bg3 {[%emt 0:00:00]} c5 {[%emt 0:00:00]} 6. c3 {[%emt 0:00:00]} O-O {[%emt 0:00:00]} 7. Bd3 {[%emt 0:00:00]} Nc6 {[%emt 0:00:00]} 8. Ngf3 {[%emt 0:00:00]} b6 {[%emt 0:00:00]} 9. Qe2 {[%emt 0:00:00] D02: 1 d4 d5 2 Nf3 sidelines, including 2...Nf6 3 g3 and 2...Nf6 3 Bf4} (9. e4 Be7 10. e5 Nh5 11. Nf1 cxd4 12. Nxd4 Nxd4 13. cxd4 g6 14. Ne3 f5 15. exf6 Bxf6 16. Be2 Nxg3 17. hxg3 {½-½ (37) Nakamura,H (2787)-Svidler,P (2760) Moscow 2018}) 9... Bb7 {[%emt 0:00:00]} 10. Rd1 {[%emt 0:00:00]} Ne7 {[%emt 0:00:00]} 11. e4 {[%emt 0:00:00] LiveBook: 4 Games} dxe4 {[%emt 0:00:00]} 12. Nxe4 {[%emt 0:00:00]} Nxe4 {[%emt 0:00:00]} 13. Bxe4 {[%emt 0:00:00]} Bxe4 {[%emt 0:00:00] [#]} 14. dxc5 $146 {[%emt 0:00:00]} ({Predecessor:} 14. Qxe4 c4 15. Ne5 Bxe5 16. dxe5 Qc8 {1-0 (42) Melkumyan,H (2633)-Henriquez Villagra,C (2517) Doha 2016}) 14... Bd5 {[%emt 0:00:00]} 15. Bxd6 {[%emt 0:00:21]} Re8 {[%emt 0:00:00]} 16. c4 {[%emt 0:02:35]} Bxf3 {[%emt 0:00:00]} 17. Qxf3 {[%emt 0:00:41]} Nf5 {[%emt 0:00:41]} 18. O-O {[%emt 0:03:12]} Qc8 {[%emt 0:10:00]} 19. b4 {[%emt 0:04:12]} e5 {[%emt 0:05:40]} 20. Rfe1 {[%emt 0:02:17]} Nd4 {[%emt 0:00:56]} 21. Qd5 {[%emt 0:00:59]} Nc2 {[%emt 0:00:45]} 22. cxb6 {[%emt 0:04:10]} axb6 {[%emt 0:00:00]} 23. Re2 {[%emt 0:04:07]} Na3 {[%emt 0:01:23]} 24. Rxe5 $18 {[%emt 0:01:51]} Qxc4 {[%emt 0:00:01]} 25. Rde1 {[%emt 0:02:19]} Rec8 {[%emt 0:00:03]} 26. Qxa8 {[%emt 0:00:01]} 1-0

[Event "17th Delhi GM Open 2019-B"]
[Site "Delhi"]
[Date "2019.01.11"]
[Round "8"]
[White "Deepak Batra"]
[Black "Sharsha Backer"]
[Result "1/2-1/2"]
[ECO "D02"]
[WhiteElo "1607"]
[BlackElo "1812"]
[Annotator "NA RC"]
[PlyCount "30"]
[EventDate "2019.01.09"]
[EventType "swiss"]
[EventCountry "IND"]
[SourceTitle "playchess.com"]
[Source "ChessBase"]
[SourceQuality "1"]
[TimeControl "3600+30"]

{[%evp 8,30,12,9,-2,32767,0,32767,0,32767,32767,32767,53,58,32767,32767,32767,32767,32767,32767,32767,-22,-33,-94,-86]} 1. d4 {[%emt 0:00:00]} Nf6 {[%emt 0:00:00]} 2. Bf4 {[%emt 0:00:00]} e6 {[%emt 0:00:00]} 3. e3 {[%emt 0:00:00]} d5 {[%emt 0:00:00]} 4. Nf3 {[%emt 0:00:00]} c5 {[%emt 0:00:00]} 5. c3 {[%emt 0:00:00]} Nc6 {[%emt 0:00:00]} 6. Nbd2 {[%emt 0:00:00]} Bd6 {[%emt 0:00:00]} 7. Bg3 {[%emt 0:00:00]} O-O {[%emt 0:00:00]} 8. Bd3 {[%emt 0:00:00]} b6 {[%emt 0:00:00]} 9. e4 {[%emt 0:00:00]} dxe4 {[%emt 0:00:00] LiveBook: 29 Games} (9... Be7 $11) 10. Nxe4 {[%emt 0:00:00]} Nxe4 {[%emt 0:00:00]} 11. Bxe4 {[%emt 0:00:00]} Bb7 {[%emt 0:00:00]} 12. dxc5 {[%emt 0:00:00]} Bxc5 {[%emt 0:00:00]} 13. b4 {[%emt 0:00:00]} Be7 {[%emt 0:00:00]} 14. Ne5 {[%emt 0:00:00]} Qc8 {[%emt 0:00:00]} 15. Qd7 {[%emt 0:00:06]} (15. O-O $1 $11 {remains equal.}) 15... Qxd7 $17 {[%emt 0:00:00]} 1/2-1/2

[Event "17th Delhi GM Open 2019-B"]
[Site "Delhi"]
[Date "2019.01.11"]
[Round "8"]
[White "Sham R"]
[Black "Sanchit, Anand"]
[Result "1-0"]
[ECO "C36"]
[WhiteElo "1590"]
[BlackElo "1815"]
[Annotator "NA RC"]
[PlyCount "74"]
[EventDate "2019.01.09"]
[EventType "swiss"]
[EventCountry "IND"]
[SourceTitle "playchess.com"]
[Source "ChessBase"]
[SourceQuality "1"]
[TimeControl "3600+30"]

{[%evp 8,72,-26,-34,32767,32767,32767,32767,32767,32767,32767,32767,32767,32767,32767,33,32767,32767,83,100,32767,32767,32767,32767,32767,32767,32767,32767,214,280,329,364,1010,1425,966,287,247,263,247,292,32767,32767,289,307,304,326,32767,32767,32767,32767,228,263,32767,32767,280,246,250,202,32767,32767,163,120,32767,32767,0,32767,0]} 1. e4 {[%emt 0:00:00]} e5 {[%emt 0:00:00]} 2. f4 {[%emt 0:00:00]} d5 {[%emt 0:00:00]} 3. exd5 {[%emt 0:00:00]} exf4 {[%emt 0:00:00]} 4. Nf3 {[%emt 0:00:00]} Nf6 {[%emt 0:00:00]} 5. c4 {[%emt 0:00:00] LiveBook: 43 Games} c6 {[%emt 0:00:00]} 6. d4 {[%emt 0:00:00]} cxd5 {[%emt 0:00:00]} 7. c5 {[%emt 0:00:00]} Be7 {[%emt 0:00:00] C36: King's Gambit Accepted: 3 Nf3 d5} (7... Nc6 8. Bb5 Be7 9. O-O O-O 10. Bxf4 Bg4 11. Nc3 Ne4 12. Qd3 Bf5 13. Qe3 Bf6 14. Bxc6 bxc6 15. Ne5 Bxe5 16. Bxe5 {1-0 (43) Carlsen,M (2837)-Chadaev,N (2580) Astana 2012}) 8. Bb5+ {[%emt 0:00:00]} Bd7 {[%emt 0:00:00]} 9. Bxd7+ {[%emt 0:00:00]} Nbxd7 $146 {[%emt 0:00:00]} ({Predecessor:} 9... Qxd7 10. O-O Nc6 11. Bxf4 O-O 12. Nc3 Ne4 13. Qb3 Rad8 14. Rae1 Bf6 15. Nxe4 dxe4 16. Rxe4 Nxd4 17. Nxd4 Bxd4+ {½-½ (23) Cvak,R (1915)-Korzh,L (2029) LSS email 2011}) 10. O-O {[%emt 0:00:00]} O-O {[%emt 0:00:00]} 11. Bxf4 {[%emt 0:00:00]} a5 {[%emt 0:00:00]} 12. Nc3 {[%emt 0:00:00]} Qc8 {[%emt 0:07:38]} 13. Re1 {[%emt 0:00:00]} Re8 {[%emt 0:18:06]} 14. Nb5 {[%emt 0:00:00]} Bd8 {[%emt 0:00:00]} 15. Rxe8+ {[%emt 0:00:00]} Nxe8 {[%emt 0:00:01]} 16. Qe2 {[%emt 0:00:00]} Nef6 {[%emt 0:00:01]} 17. Ng5 {[%emt 0:00:00]} Qc6 {[%emt 0:00:22]} 18. Nd6 {[%emt 0:00:00]} Bc7 {[%emt 0:00:54]} 19. Ngxf7 {[%emt 0:00:00]} Ne4 $2 {[%emt 0:05:09] [#]} (19... h5 20. Qe7 Bxd6 21. Nxd6 Kh8) 20. Nh6+ $1 {[%emt 0:00:00]} Kf8 {[%emt 0:04:44]} 21. Qg4 $2 {[%emt 0:00:00]} (21. Qh5 {[%csl Gd6,Gh6][%cal Rh5f7]} g6 {[#]} 22. Nhf5 $1 {[%mdl 512]} Bxd6 23. Qh6+ (23. Bxd6+ Kg8 $16) 23... Ke8 24. Nxd6+ Kd8 25. Qg7) 21... Ndf6 {[%emt 0:06:58]} 22. Qe6 {[%emt 0:00:00]} Qd7 {[%emt 0:00:19]} 23. Qxd7 {[%emt 0:00:00]} Nxd7 {[%emt 0:00:02]} 24. Rf1 {[%emt 0:00:00]} gxh6 {[%emt 0:03:04]} (24... Bxd6 $16 25. Bxd6+ {[%mdl 64] Discovered Attack (Double check)} Ke8) 25. Nxe4 {[%emt 0:00:00]} dxe4 {[%emt 0:01:41]} 26. Bxc7+ {[%emt 0:00:00]} Kg7 {[%emt 0:01:32]} 27. Rf4 {[%emt 0:00:00]} Re8 {[%emt 0:00:01]} 28. Bxa5 {[%emt 0:00:00]} Nf6 {[%emt 0:01:37]} 29. Bc7 {[%emt 0:00:00]} Nd5 {[%emt 0:02:28]} 30. Rg4+ {[%emt 0:00:00]} Kf6 {[%emt 0:00:17]} 31. Be5+ {[%emt 0:00:00]} Kf5 {[%emt 0:01:38]} 32. Rg7 {[%emt 0:00:00]} e3 {[%emt 0:01:23]} 33. Kf1 {[%emt 0:00:00]} Ke4 {[%emt 0:01:48]} 34. Ke2 {[%emt 0:00:00]} (34. Rxh7 Rf8+ 35. Bf4 Rxf4+ 36. Ke1 Rf2 $19 {[%mdl 64] Double Attack}) 34... h5 {[%emt 0:04:44]} 35. Rf7 {[%emt 0:00:00]} Rg8 $1 {[%emt 0:02:06]} 36. g3 {[%emt 0:00:00]} Ra8 $11 {[%emt 0:02:24]} 37. a3 {[%emt 0:00:00]} Ra4 {[%emt 0:00:00]} 1-0

[Event "17th Delhi GM Open 2019-B"]
[Site "Delhi"]
[Date "2019.01.11"]
[Round "9"]
[White "Koustav Chakraborty"]
[Black "Aryan"]
[Result "1-0"]
[ECO "B01"]
[WhiteElo "1898"]
[BlackElo "1784"]
[Annotator "NA"]
[PlyCount "73"]
[EventDate "2019.01.09"]
[EventType "swiss"]
[EventCountry "IND"]
[SourceTitle "playchess.com"]
[Source "ChessBase"]
[SourceQuality "1"]
[TimeControl "3600+30"]

{[%evp 11,73,64,32767,32767,32767,32767,64,72,67,68,83,35,25,25,32767,32767,32767,17,18,11,33,9,32767,7,32767,32767,32767,4,54,32767,51,16,32767,32767,32767,32767,32767,32767,32767,32767,32767,32767,32767,32767,201,211,32767,32767,32767,32767,32767,32767,32767,282,289,298,289,324,377,32767,583,32767,1715,5481]} 1. e4 {[%emt 0:00:00]} d5 {[%emt 0:00:00]} 2. exd5 {[%emt 0:00:00]} Qxd5 {[%emt 0:00:00]} 3. Nc3 {[%emt 0:00:00]} Qd8 {[%emt 0:00:00]} 4. d4 {[%emt 0:00:00]} Nf6 {[%emt 0:00:00]} 5. Bc4 {[%emt 0:00:00]} g6 {[%emt 0:00:00] B01: Scandinavian Defence} (5... a6 6. Bg5 h6 7. Bxf6 exf6 8. Nf3 Bb4 9. O-O Bxc3 10. bxc3 O-O 11. Re1 Nc6 12. Nh4 Na5 13. Bd3 {1-0 (21) Nakamura,H (2789)-Shaw,J (2454) Baku 2016}) 6. Nf3 {[%emt 0:00:00] LiveBook: 15 Games} Bg7 {[%emt 0:00:00]} 7. Bg5 {[%emt 0:00:00]} O-O {[%emt 0:00:00]} 8. Qd2 {[%emt 0:00:00]} c6 {[%emt 0:00:00]} 9. O-O {[%emt 0:00:00]} Bf5 {[%emt 0:00:00]} 10. Rfe1 $146 {[%emt 0:00:00]} ({Predecessor:} 10. Bb3 Nd5 11. Nxd5 cxd5 12. Qb4 f6 13. Qxb7 fxg5 14. Qxa8 {1-0 (33) Dobroczy,V-Kovacs,L (2044) Eger 2008}) 10... Nbd7 {[%emt 0:00:00]} 11. Rad1 {[%emt 0:00:00]} b5 {[%emt 0:00:00]} 12. Bd3 {[%emt 0:00:00]} Bxd3 {[%emt 0:00:00]} 13. Qxd3 {[%emt 0:00:00]} e6 {[%emt 0:00:00]} 14. Ne4 {[%emt 0:00:00]} Qc7 {[%emt 0:01:09]} 15. c3 {[%emt 0:00:00]} Rfe8 {[%emt 0:03:38]} 16. h4 {[%emt 0:00:00]} Nd5 {[%emt 0:02:11]} 17. c4 {[%emt 0:00:57]} bxc4 {[%emt 0:04:05]} 18. Qxc4 {[%emt 0:00:07]} Rab8 {[%emt 0:01:29]} 19. b3 {[%emt 0:01:58]} Rb4 {[%emt 0:07:18]} 20. Qc2 {[%emt 0:01:46]} Rc8 {[%emt 0:03:01]} 21. Bc1 {[%emt 0:10:44]} Rb5 {[%emt 0:03:58]} 22. Ba3 {[%emt 0:05:21]} Bf8 {[%emt 0:05:20]} 23. Bxf8 {[%emt 0:00:16]} Kxf8 {[%emt 0:00:15]} 24. Neg5 {[%emt 0:07:05]} Kg8 {[%emt 0:01:31]} 25. h5 {[%emt 0:00:08]} Nb4 {[%emt 0:01:14]} 26. Qb1 {[%emt 0:01:49]} Qf4 {[%emt 0:01:59]} 27. a3 {[%emt 0:01:36]} Na6 {[%emt 0:01:04] [#]} (27... Nd5 $16 {was worth a try.}) 28. hxg6 $1 {[%emt 0:02:21]} Rxg5 {[%emt 0:00:50]} 29. gxf7+ {[%emt 0:00:05]} Kxf7 {[%emt 0:01:52]} 30. Nxg5+ {[%emt 0:00:06]} Qxg5 {[%emt 0:00:03]} 31. Qxh7+ {[%emt 0:00:05]} Qg7 {[%emt 0:00:10]} 32. Qxg7+ {[%emt 0:02:18]} Kxg7 {[%emt 0:00:00]} 33. Rxe6 {[%emt 0:00:00]} Kf7 {[%emt 0:01:30]} 34. Rde1 {[%emt 0:00:13]} Nab8 {[%emt 0:00:36]} 35. f4 {[%emt 0:01:10]} Rc7 $2 {[%emt 0:01:06]} (35... c5 {was called for.} 36. Re7+ Kf8 37. dxc5 Rxc5) 36. Re7+ {[%emt 0:00:10]} Kf6 {[%emt 0:00:30]} 37. g4 $18 {[%emt 0:00:06]} 1-0

[Event "17th Delhi GM Open 2019-B"]
[Site "Delhi"]
[Date "2019.01.11"]
[Round "9"]
[White "Heikrujam Jacky Singh"]
[Black "Sai Kiran Y"]
[Result "1/2-1/2"]
[ECO "A46"]
[WhiteElo "1870"]
[BlackElo "1732"]
[Annotator "NA RC"]
[PlyCount "39"]
[EventDate "2019.01.09"]
[EventType "swiss"]
[EventCountry "IND"]
[SourceTitle "playchess.com"]
[Source "ChessBase"]
[SourceQuality "1"]
[TimeControl "3600+30"]

{[%evp 14,39,34,40,78,70,69,30,35,0,11,7,32767,32767,32767,32767,25,32767,0,-25,-21,-15,-24,-37,-39,-37,-30,-36]} 1. d4 {[%emt 0:00:00]} Nf6 {[%emt 0:00:00]} 2. Nf3 {[%emt 0:00:00]} e6 {[%emt 0:00:00]} 3. Bf4 {[%emt 0:00:00]} c5 {[%emt 0:00:00]} 4. e3 {[%emt 0:00:00]} Nc6 {[%emt 0:00:00]} 5. c3 {[%emt 0:00:00]} cxd4 {[%emt 0:00:00]} 6. exd4 {[%emt 0:00:00]} Nh5 {[%emt 0:00:00] A46: 1 d4 Nf6 2 Nf3 e6: Torre, London and Colle Systems} 7. Be3 {[%emt 0:00:00]} d5 {[%emt 0:00:00]} 8. Ne5 {[%emt 0:00:00]} Nxe5 $146 {[%emt 0:00:00]} ({Predecessor:} 8... g6 9. Nd2 Bd6 10. Nd3 f6 11. g4 Ng7 12. Bg2 h5 13. h3 Bd7 14. Qf3 {1-0 (47) Islam,K (2222)-Abu Sufian,S (2322) Dhaka 2017}) 9. dxe5 {[%emt 0:00:00]} g6 $1 {[%emt 0:00:00]} 10. Bb5+ {[%emt 0:00:00]} Bd7 {[%emt 0:00:00]} 11. Qa4 {[%emt 0:00:00]} a6 {[%emt 0:00:00]} 12. Bxd7+ {[%emt 0:00:00]} Qxd7 {[%emt 0:00:00]} 13. Qxd7+ {[%emt 0:00:00]} Kxd7 {[%emt 0:00:00]} 14. Nd2 {[%emt 0:00:00]} Rc8 {[%emt 0:00:00]} 15. Nb3 {[%emt 0:00:00]} Ng7 {[%emt 0:00:00]} 16. f4 {[%emt 0:00:00]} Nf5 {[%emt 0:00:00]} 17. Bf2 {[%emt 0:00:00]} h5 {[%emt 0:00:00]} 18. O-O {[%emt 0:00:00]} Be7 {[%emt 0:00:00]} 19. Nd4 {[%emt 0:00:26]} Nxd4 {[%emt 0:00:00]} 20. Bxd4 $15 {[%emt 0:00:08]} 1/2-1/2